bitfinex/quotes_ETHUSD_20250331
["timestamp","ask_amount","ask_price","bid_price","bid_amount"]
[1743384018606,5.4023,1805.7,1805.5,5.5384]
[1743384018803,5.4023,1805.7,1805.6,5.53832]
[1743384019605,0.8127,1805.6,1805.2,5.53942]
[1743384019802,5.4023,1805.5,1805.2,11.07878]
[1743384019989,5.4023,1805.5,1805.3,5.5392]
[1743384020178,5.4023,1805.5,1805.4,5.53893]
[1743384021209,5.4023,1805.5,1805.3,11.07826]
[1743384021401,5.4023,1805.5,1805.4,5.53893]
[1743384021602,5.4023,1805.5,1805.4,6.08893]
[1743384021979,5.4023,1805.5,1805.4,20.58893]
[1743384022796,5.4023,1805.5,1805.4,21.41283]
[1743384023608,5.4023,1805.9,1805.8,5.53771]
[1743384023793,14.17911286,1806.5,1805.9,5.53723]
[1743384023794,0.8127,1806.2,1805.9,5.53723]
[1743384024504,0.8127,1806.2,1805.8,5.5377]
[1743384024814,0.8127,1806.2,1805.9,5.53722]
[1743384025209,0.8127,1806.2,1805.8,5.53763]
[1743384025417,0.8127,1806.2,1805.9,5.53735]
[1743384026009,1.747604,1806.2,1805.9,11.07458]
[1743384026173,0.8127,1806.2,1805.9,5.53723]
[1743384026368,0.8127,1806.2,1805.9,5.53739]
[1743384027416,0.8127,1806.2,1805.9,11.07459]
[1743384027571,0.8127,1806.2,1805.9,5.53722]
[1743384028056,5.4023,1806.1,1805.8,5.53753]
[1743384029363,5.4023,1806.1,1805.8,11.07504]
[1743384029564,5.4023,1806.1,1805.9,5.53723]
[1743384031607,0.23829006,1806.0,1805.9,5.53723]
[1743384032311,0.23829006,1806.0,1805.8,6.645194]
[1743384032506,0.23829006,1806.0,1805.8,5.53769]
[1743384032673,0.23829006,1806.0,1805.8,5.53751]
[1743384033504,0.23829006,1806.0,1805.9,5.5374]
[1743384034709,0.23829006,1806.0,1805.9,6.9048]
[1743384034998,5.4023,1806.2,1806.1,6.08679]
[1743384035204,5.4023,1806.2,1806.1,7.249168]
[1743384035389,5.4023,1806.6,1806.4,5.53572]
[1743384035795,5.4023,1806.6,1806.5,5.53556]
[1743384036177,5.4023,1806.6,1806.4,5.53572]
[1743384036598,5.4023,1806.6,1806.4,11.07142]
[1743384036908,5.4023,1806.6,1806.4,11.07144]
[1743384037705,5.4023,1806.6,1806.5,5.53556]
[1743384039621,5.94253,1806.6,1806.2,5.5362]
[1743384039783,6.74953,1806.6,1806.2,5.5362]
[1743384039986,6.74953,1806.6,1806.2,11.07248]
[1743384040510,6.74953,1806.6,1806.4,5.53557]
[1743384040511,5.4023,1806.6,1806.4,5.53557]
[1743384040725,5.4023,1806.6,1806.5,5.53556]
[1743384040933,5.4023,1806.6,1806.5,6.28766]
[1743384041113,5.4023,1806.8,1806.7,5.53495]
[1743384041519,0.1,1806.9,1806.8,6.08464]
[1743384041701,0.1,1806.9,1806.8,8.053699]
[1743384041903,0.1,1806.9,1806.8,22.553699]
[1743384042939,0.29026788,1806.9,1806.8,20.03464]
[1743384043230,0.1,1806.9,1806.8,5.53464]
[1743384043439,0.29316112,1806.9,1806.8,5.53464]
[1743384044597,0.29316112,1806.9,1806.8,6.08464]
[1743384045026,0.29316112,1806.9,1806.8,5.53464]
[1743384046397,0.29316112,1806.9,1806.8,8.003699]
[1743384046595,0.1,1806.9,1806.8,8.003699]
[1743384046920,0.1,1806.9,1806.8,22.503699]
[1743384047903,0.29253722,1806.9,1806.8,22.503699]
[1743384048097,0.1,1806.9,1806.8,22.503699]
[1743384048301,0.29253722,1806.9,1806.8,22.503699]
[1743384048515,0.1,1806.9,1806.8,22.503699]
[1743384048713,0.29253722,1806.9,1806.8,22.503699]
[1743384049030,0.1,1806.9,1806.8,22.503699]
[1743384049233,0.29253722,1806.9,1806.8,22.503699]
[1743384049735,0.29253722,1806.9,1806.8,8.003699]
[1743384050425,0.1,1806.9,1806.8,8.003699]
[1743384053600,0.1,1806.9,1806.8,22.503699]
[1743384055336,0.1,1806.9,1806.8,23.62267939]
[1743384057038,0.1,1806.9,1806.8,13.79757939]
[1743384057211,0.29707518,1806.9,1806.8,13.79757939]
[1743384057412,0.29707518,1806.9,1806.8,14.34757939]
[1743384057837,0.1,1806.9,1806.8,14.34757939]
[1743384058337,0.1,1806.9,1806.8,13.228599]
[1743384058524,0.1,1806.9,1806.7,5.53478]
[1743384058839,0.1,1806.9,1806.8,5.53464]
[1743384061006,0.1,1806.9,1806.7,5.53478]
[1743384061237,5.5023,1806.9,1806.6,5.53514]
[1743384061439,6.687959,1806.9,1806.6,5.53514]
[1743384061748,6.687959,1806.9,1806.5,14.5]
[1743384061749,5.5023,1806.9,1806.8,5.53464]
[1743384063140,5.5023,1806.9,1806.8,12.12064]
[1743384064148,5.5023,1806.9,1806.8,5.53464]
[1743384064353,11.85688,1806.9,1806.4,37.49986]
[1743384064638,0.8201,1806.7,1806.4,5.53567]
[1743384064842,0.8201,1806.7,1806.5,5.53538]
[1743384065043,0.8201,1806.7,1806.4,5.53567]
[1743384065341,0.8201,1806.7,1806.6,5.53525]
[1743384065513,5.4023,1806.8,1806.7,5.53495]
[1743384066547,5.4023,1806.8,1806.7,6.64197]
[1743384066854,0.1,1806.9,1806.8,6.08464]
[1743384067151,0.29582747,1806.9,1806.8,6.08464]
[1743384067340,0.1,1806.9,1806.8,20.58464]
[1743384067856,0.29401238,1806.9,1806.8,20.58464]
[1743384068150,0.29401238,1806.9,1806.8,23.386781]
[1743384068350,0.29401238,1806.9,1806.8,20.58464]
[1743384069751,0.29401238,1806.9,1806.8,21.37944]
[1743384069955,5.4023,1807.3,1807.2,5.53342]
[1743384070134,0.8201,1807.5,1807.4,5.5328]
[1743384070457,1.01587076,1807.5,1807.4,5.5328]
[1743384071048,0.19577076,1807.5,1807.4,5.5328]
[1743384072453,6.31383,1807.4,1806.9,5.53434]
[1743384072752,6.31455,1807.2,1806.8,5.53464]
[1743384073054,5.4023,1807.1,1806.9,5.53431]
[1743384073236,0.19979682,1807.0,1806.8,5.53452]
[1743384073638,0.19979682,1807.0,1806.8,11.06895]
[1743384073961,0.19979682,1807.0,1806.7,5.53491]
[1743384074172,0.19979682,1807.0,1806.5,6.99738807]
[1743384074173,6.1833,1806.9,1806.5,5.53555]
[1743384074469,0.19786901,1806.8,1806.5,5.53538]
[1743384074654,5.60016901,1806.8,1806.6,5.53523]
[1743384075740,5.60016901,1806.8,1806.5,5.53538]
[1743384075951,5.60016901,1806.8,1806.5,11.07082]
[1743384076456,5.60016901,1806.8,1806.6,5.53524]
[1743384076836,5.60016901,1806.8,1806.7,5.53495]
[1743384077376,5.4023,1806.8,1806.7,5.53495]
[1743384077660,5.60016901,1806.8,1806.7,5.53495]
[1743384078027,0.19786901,1806.8,1806.7,5.53495]
[1743384078227,0.19786901,1806.8,1806.6,5.53524]
[1743384078556,0.19786901,1806.8,1806.6,5.53513]
[1743384078778,0.19786901,1806.8,1806.7,5.53495]
[1743384080657,6.1833,1807.1,1806.7,11.0699]
[1743384080849,0.19430221,1807.0,1806.7,5.53495]
[1743384081287,0.19430221,1807.0,1806.8,5.53464]
[1743384081483,0.19430221,1807.0,1806.9,5.53434]
[1743384081702,6.1833,1807.4,1807.3,5.53311]
[1743384081983,6.77485939,1807.8,1807.4,11.06521]
[1743384081984,6.1833,1807.7,1807.4,11.06521]
[1743384082381,5.53232,1807.6,1807.2,5.53339]
[1743384082683,11.71546,1807.7,1807.2,5.5333]
[1743384082980,6.1833,1807.7,1807.5,5.53247]
[1743384083180,6.1833,1807.7,1806.4,37.48473]
[1743384083181,3.10121103,1807.6,1806.4,37.48473]
[1743384083359,5.53324,1807.3,1806.9,5.53419]
[1743384083564,5.4023,1807.2,1806.9,5.53419]
[1743384083980,10.93579,1807.2,1806.8,5.53464]
[1743384084154,0.781,1807.1,1806.9,5.53432]
[1743384084452,0.781,1807.1,1806.9,11.06844]
[1743384084652,0.781,1807.1,1806.9,5.53412]
[1743384085091,0.781,1807.1,1806.8,5.53463]
[1743384085261,0.781,1807.1,1806.8,11.06926]
[1743384085451,0.781,1807.1,1806.9,5.5343]
[1743384085662,5.4023,1807.2,1807.1,5.53372]
[1743384086067,5.4023,1807.2,1807.0,5.53403]
[1743384087687,0.16508493,1807.1,1807.0,5.53403]
[1743384087890,0.16508493,1807.1,1806.9,5.53433]
[1743384088758,0.16508493,1807.1,1806.9,11.0685]
[1743384089077,0.16508493,1807.1,1806.9,5.53417]
[1743384090696,6.12412342,1807.1,1806.6,5.53519]
[1743384090887,5.5344,1806.9,1806.5,5.53553]
[1743384091090,0.7504,1806.7,1806.5,5.53553]
[1743384091294,0.7504,1806.7,1806.2,6.028]
[1743384091295,10.93773,1806.6,1806.2,5.53619]
[1743384091489,0.16440226,1806.5,1806.3,5.53616]
[1743384091671,5.4023,1806.4,1806.3,5.53616]
[1743384091872,5.4023,1806.4,1806.0,6.34144]
[1743384092081,14.57893013,1806.3,1805.9,37.4854]
[1743384092283,14.57893013,1806.3,1806.0,5.53705]
[1743384092284,9.04272013,1806.3,1806.0,5.53705]
[1743384092485,5.56670226,1806.3,1806.2,5.53648]
[1743384093168,5.56670226,1806.3,1806.1,5.53658]
[1743384093794,5.56670226,1806.3,1806.2,5.53648]
[1743384095103,5.56670226,1806.3,1806.2,6.08648]
[1743384095296,6.1527,1806.9,1806.2,0.55]
[1743384095599,0.16440226,1806.8,1806.7,5.53485]
[1743384096299,5.4023,1806.9,1806.8,5.53464]
[1743384096464,5.56670226,1806.9,1806.8,5.53464]
[1743384096866,0.16440226,1806.9,1806.8,7.30054188]
[1743384097061,5.4023,1807.3,1807.2,5.53342]
[1743384097273,0.16440226,1807.3,1807.2,5.53342]
[1743384097478,0.7504,1807.4,1807.2,5.53342]
[1743384097684,0.16303676,1807.3,1807.2,5.53342]
[1743384097890,5.4023,1807.5,1807.3,5.53292]
[1743384098092,0.16303676,1807.4,1807.3,5.53292]
[1743384098987,5.4023,1807.7,1807.4,5.53256]
[1743384099164,0.8504,1807.9,1807.4,5.53256]
[1743384099165,0.1,1807.9,1807.5,5.5325]
[1743384099365,0.1,1807.9,1807.8,6.08158]
[1743384099604,0.1,1807.9,1807.8,13.269917]
[1743384100470,0.1,1807.9,1807.8,17.074417]
[1743384100799,5.4023,1808.5,1807.8,17.074417]
[1743384100800,0.7504,1808.7,1808.4,5.52955]
[1743384101002,0.7504,1808.7,1808.5,5.52944]
[1743384101198,0.7504,1808.7,1808.4,5.52955]
[1743384101199,0.7504,1808.7,1808.4,5.52953]
[1743384101585,0.7504,1808.7,1808.5,5.52925]
[1743384102097,0.7504,1808.7,1808.5,5.5292]
[1743384102779,0.17600103,1808.6,1808.5,5.5292]
[1743384102973,0.17600103,1808.6,1808.3,5.5298]
[1743384103172,0.7504,1808.7,1808.3,5.5298]
[1743384103403,0.17600103,1808.5,1808.3,6.87629174]
[1743384103601,6.27938,1808.7,1808.3,1.34649174]
[1743384103819,0.17600103,1808.4,1808.3,5.53004]
[1743384104014,5.52915,1808.6,1808.1,5.53065]
[1743384104330,10.93145,1808.6,1808.1,11.55365]
[1743384104534,5.70548103,1808.5,1808.1,6.023]
[1743384104700,6.34828,1808.3,1807.8,12.224097]
[1743384105015,0.17832992,1808.2,1808.0,5.53096]
[1743384105313,0.17832992,1808.2,1808.1,5.53066]
[1743384105501,0.17832992,1808.2,1808.1,6.08066]
[1743384105892,0.17832992,1808.2,1808.0,5.53096]
[1743384106095,0.17832992,1808.2,1808.0,6.718683]
[1743384106488,0.17832992,1808.2,1808.1,5.53066]
[1743384108413,0.17832992,1808.2,1808.1,6.08066]
[1743384108790,0.17832992,1808.2,1808.1,11.55166]
[1743384110303,0.17832992,1808.2,1808.1,12.10166]
[1743384110499,6.2128,1808.8,1808.2,6.08036]
[1743384110706,0.18145496,1808.7,1808.6,5.52903]
[1743384112511,0.1,1808.9,1808.8,5.52852]
[1743384112715,0.28145496,1808.9,1808.8,5.52852]
[1743384113821,0.28145496,1808.9,1808.8,6.07852]
[1743384114026,0.28145496,1808.9,1808.8,7.239247]
[1743384115723,0.28145496,1808.9,1808.6,5.52894]
[1743384115916,0.28145496,1808.9,1808.6,5.52887]
[1743384116111,0.28145496,1808.9,1808.8,5.52852]
[1743384116319,0.28145496,1808.9,1808.6,5.52906]
[1743384116917,0.28145496,1808.9,1808.6,11.05796]
[1743384117103,0.28145496,1808.9,1808.7,5.52861]
[1743384117508,0.28145496,1808.9,1808.6,5.52905]
[1743384117827,0.28145496,1808.9,1808.6,5.52891]
[1743384118224,0.28145496,1808.9,1808.7,5.52865]
[1743384118531,0.28145496,1808.9,1808.8,5.52852]
[1743384118826,0.28145496,1808.9,1808.8,6.634237]
[1743384119412,0.28145496,1808.9,1808.8,7.184237]
[1743384120807,0.1,1808.9,1808.8,7.184237]
[1743384121208,0.27338945,1808.9,1808.8,7.184237]
[1743384121440,0.1,1808.9,1808.8,7.184237]
[1743384121623,0.27338945,1808.9,1808.8,7.184237]
[1743384121807,0.806,1809.7,1809.5,5.52638]
[1743384122008,0.1,1809.9,1809.8,5.52547]
[1743384123515,0.1,1809.9,1809.8,12.29847]
[1743384123808,0.1,1809.9,1809.8,11.53947]
[1743384124414,0.1,1809.9,1809.7,11.46094297]
[1743384124614,0.1,1809.9,1809.5,6.078718]
[1743384124806,0.806,1809.8,1809.5,5.52608]
[1743384125006,0.806,1809.8,1809.6,5.52604]
[1743384126207,0.806,1809.8,1809.7,5.52577]
[1743384126416,0.806,1809.8,1809.6,5.52604]
[1743384126733,0.806,1809.8,1809.6,5.52585]
[1743384126932,0.1,1809.9,1809.8,5.52547]
[1743384127101,0.1,1809.9,1809.7,5.52577]
[1743384127299,0.17924062,1809.8,1809.6,6.078655]
[1743384127512,0.1,1809.9,1809.6,6.078655]
[1743384127731,0.17924062,1809.8,1809.6,6.078655]
[1743384128039,0.806,1809.7,1809.4,37.44551]
[1743384128251,0.806,1809.7,1809.4,37.44542]
[1743384128431,0.806,1809.7,1809.4,42.97197]
[1743384128615,0.17924062,1809.6,1809.4,37.44542]
[1743384128835,0.17924062,1809.6,1809.4,31.919]
[1743384129340,0.17924062,1809.6,1809.5,6.07638]
[1743384129523,0.1,1809.9,1809.8,5.52547]
[1743384129706,0.1,1809.9,1809.7,5.52561]
[1743384129707,0.27924062,1809.9,1809.7,5.52561]
[1743384130222,0.806,1809.7,1809.4,31.919]
[1743384130546,0.18395616,1809.6,1809.4,31.919]
[1743384131632,0.18395616,1809.6,1809.4,5.52666]
[1743384131929,0.18395616,1809.6,1809.3,5.52691]
[1743384132132,6.2083,1809.5,1808.8,1.864717]
[1743384132334,8.62579605,1809.3,1808.8,5.52838]
[1743384132636,6.39425225,1809.2,1808.6,11.53809]
[1743384132832,6.39425225,1809.2,1808.8,5.5283]
[1743384133140,6.39425225,1809.2,1809.0,5.52779]
[1743384133533,0.18225225,1809.2,1809.1,5.52761]
[1743384133783,5.4023,1809.5,1809.4,5.52669]
[1743384133911,0.16097094,1809.5,1809.4,5.52669]
[1743384134232,5.4023,1809.7,1809.5,5.52626]
[1743384134433,5.4023,1809.7,1809.5,11.05245]
[1743384134643,6.212,1809.8,1809.6,5.52608]
[1743384134845,6.212,1809.8,1809.5,5.52637]
[1743384135534,6.212,1809.8,1809.6,5.52604]
[1743384135926,6.212,1809.8,1809.7,5.52577]
[1743384136936,5.4023,1809.8,1809.7,5.52577]
[1743384137141,5.4023,1809.8,1809.6,11.05184]
[1743384137319,5.4023,1809.8,1809.5,20.578817]
[1743384137508,5.4023,1809.8,1809.5,20.578787]
[1743384137909,5.4023,1809.8,1809.6,2.0578787]
[1743384138143,5.4023,1809.8,1809.6,5.52592]
[1743384138336,5.4023,1809.8,1809.7,5.52577]
[1743384140011,5.4023,1809.8,1809.5,15.052637]
[1743384140012,6.2153,1809.8,1809.5,20.578987]
[1743384140421,0.16097094,1809.7,1809.5,20.578987]
[1743384140637,0.16097094,1809.7,1809.5,20.578807]
[1743384141137,0.16097094,1809.7,1809.6,7.39472397]
[1743384141551,5.4023,1809.8,1809.7,5.52577]
[1743384141856,5.56327094,1809.8,1809.7,5.52577]
[1743384145855,5.56327094,1809.8,1809.6,5.52608]
[1743384146663,5.56327094,1809.8,1809.6,6.28088]
[1743384146852,5.56327094,1809.8,1809.7,5.52577]
[1743384148134,5.56327094,1809.8,1809.6,11.05172]
[1743384148333,0.16097094,1809.8,1809.6,11.05172]
[1743384148546,0.16097094,1809.8,1809.7,5.52577]
[1743384149055,0.16097094,1809.8,1809.2,33.68290214]
[1743384149244,5.5262,1809.6,1809.2,37.43305]
[1743384149637,0.16927622,1809.5,1809.2,37.43305]
[1743384150162,0.755,1809.3,1809.0,20.02776]
[1743384150367,0.16785445,1809.2,1809.0,20.02776]
[1743384150524,0.16785445,1809.2,1809.0,14.5]
[1743384151166,0.16785445,1809.2,1808.9,5.52822]
[1743384151325,0.16785445,1809.2,1808.8,5.52849]
[1743384151631,0.16785445,1809.2,1808.6,0.8097]
[1743384151632,14.40060795,1809.1,1808.6,11.53207]
[1743384151831,14.02765403,1809.0,1808.6,5.52907]
[1743384152049,14.19351732,1809.0,1808.6,5.52907]
[1743384152931,11.09627329,1809.0,1808.6,5.52907]
[1743384153778,5.4023,1808.9,1808.5,5.52926]
[1743384153948,5.4023,1808.9,1808.4,5.52968]
[1743384153949,11.68575,1808.9,1808.4,5.52968]
[1743384154147,0.15732812,1808.8,1808.4,5.52968]
[1743384154372,5.52873,1808.8,1808.4,5.52968]
[1743384154571,0.15732812,1808.7,1808.5,5.52943]
[1743384154873,0.755,1808.9,1808.8,5.52852]
[1743384155074,6.1573,1809.1,1808.8,5.52852]
[1743384155250,6.1573,1809.1,1808.8,5.5284]
[1743384155447,6.1573,1809.1,1808.9,14.5]
[1743384157879,6.1573,1809.1,1808.8,5.52851]
[1743384158177,6.1573,1809.1,1808.8,20.02851]
[1743384158343,6.1573,1809.1,1808.8,22.584236]
[1743384158543,6.1573,1809.1,1808.8,17.055726]
[1743384158842,11.68505,1809.1,1808.8,14.5]
[1743384159156,5.52734,1809.2,1808.1,31.904]
[1743384159157,11.81421,1808.5,1808.1,31.904]
[1743384159463,6.1573,1808.5,1808.1,37.43452]
[1743384159862,6.1573,1808.5,1808.1,31.904]
[1743384159863,5.52991,1808.4,1808.1,31.904]
[1743384160551,0.15772661,1808.3,1808.1,31.904]
[1743384160771,11.6868,1808.5,1808.1,35.647485]
[1743384160951,10.93249,1808.3,1808.1,31.904]
[1743384161368,11.84310912,1808.2,1807.7,6.3413]
[1743384161568,5.53079,1808.1,1807.7,5.5316]
[1743384161778,0.15391125,1808.0,1807.7,6.08476]
[1743384162890,0.15391125,1808.0,1807.8,5.5314]
[1743384163211,6.1573,1808.2,1807.8,5.5314]
[1743384163487,0.14730377,1807.9,1807.8,6.0814]
[1743384163651,6.1573,1808.2,1807.8,11.61274]
[1743384163849,6.1573,1808.2,1807.9,1.161274]
[1743384164450,6.1573,1808.2,1807.9,6.692424]
[1743384164876,6.1573,1808.2,1808.0,14.5]
[1743384165764,6.1573,1808.2,1808.0,20.03096]
[1743384165947,6.1573,1808.2,1807.9,6.692424]
[1743384166361,6.1573,1808.2,1808.0,14.5]
[1743384166782,5.4023,1808.2,1808.1,5.53066]
[1743384167161,5.4023,1808.2,1808.0,2.1192424]
[1743384167362,5.4023,1808.2,1807.8,6.08131]
[1743384168053,6.35163,1808.1,1807.7,5.53184]
[1743384168257,5.53148,1807.9,1807.4,5.53265]
[1743384168458,5.53148,1807.9,1807.5,5.53247]
[1743384168459,0.8208,1807.8,1807.5,5.53247]
[1743384168701,0.8208,1807.8,1807.5,6.638982]
[1743384169072,0.8208,1807.8,1807.5,21.138982]
[1743384169387,0.8208,1807.8,1807.5,6.638982]
[1743384169883,5.4023,1808.0,1807.8,5.53137]
[1743384170084,5.4023,1808.0,1807.9,5.53127]
[1743384170583,5.4023,1808.0,1807.9,6.637534]
[1743384171782,5.4023,1808.2,1807.9,1.106264]
[1743384171994,5.4023,1808.2,1807.8,5.53137]
[1743384172156,10.9327,1808.2,1807.8,5.53137]
[1743384172583,10.9327,1808.2,1807.6,5.53213]
[1743384172584,0.8208,1808.0,1807.6,5.53213]
[1743384172772,6.35194,1808.0,1807.6,5.53213]
[1743384172951,6.35194,1808.0,1807.6,6.8300692]
[1743384175271,5.4023,1807.9,1807.4,5.53273]
[1743384175477,10.93387,1807.9,1807.5,5.53249]
[1743384175680,10.93385,1807.9,1807.4,5.53263]
[1743384175983,5.4023,1807.9,1807.5,5.53225]
[1743384176285,10.9337,1807.9,1807.5,5.53225]
[1743384176485,10.9337,1807.9,1807.4,5.5328]
[1743384176689,3.09724403,1807.5,1807.1,0.1]
[1743384176853,5.53324,1807.3,1807.1,0.1]
[1743384177055,5.53342,1807.2,1807.1,0.1]
[1743384177255,6.35422,1807.2,1807.1,0.1]
[1743384177760,6.49531059,1807.2,1807.1,0.1]
[1743384180692,6.36419059,1807.2,1807.1,0.1]
[1743384181081,11.89761059,1807.2,1807.1,0.1]
[1743384181394,13.95042005,1807.2,1807.1,0.1]
[1743384185394,6.36419059,1807.2,1807.1,0.1]
[1743384185768,11.89761059,1807.2,1807.1,0.1]
[1743384186893,14.89761059,1807.2,1807.1,0.1]
[1743384192399,6.36419059,1807.2,1807.1,0.1]
[1743384192587,5.54339059,1807.2,1807.1,0.1]
[1743384192786,0.14109059,1807.2,1807.1,0.1]
[1743384193086,0.14109059,1807.2,1807.1,7.016508]
[1743384193666,5.4023,1807.4,1807.2,5.53316]
[1743384193974,5.4023,1807.4,1807.1,7.016508]
[1743384194496,5.4023,1807.4,1807.2,5.53323]
[1743384194700,5.4023,1807.4,1807.1,1.482788]
[1743384195003,5.4023,1807.4,1807.3,5.53311]
[1743384196298,5.4023,1807.4,1807.3,6.63974]
[1743384196515,5.4023,1807.6,1807.5,6.3519]
[1743384196714,5.4023,1808.0,1807.6,5.53218]
[1743384196914,3.0,1807.9,1807.6,5.53218]
[1743384197467,3.0,1807.9,1807.6,5.53206]
[1743384197702,3.0,1807.9,1807.6,6.720456]
[1743384198990,3.0,1807.9,1807.6,6.720396]
[1743384199297,3.0,1807.9,1807.7,5.53183]
[1743384199499,3.0,1807.9,1807.6,6.720396]
[1743384199910,5.4023,1808.0,1807.8,5.53138]
[1743384200076,5.4023,1808.0,1807.8,6.084518]
[1743384200402,8.4023,1808.0,1807.9,5.53127]
[1743384200704,5.4023,1808.0,1807.9,5.53127]
[1743384201206,5.4023,1808.0,1807.8,6.903918]
[1743384202009,10.93342,1808.0,1807.6,5.53218]
[1743384202203,17.22454,1808.0,1807.6,5.53218]
[1743384202406,17.22454,1808.0,1807.5,6.8164]
[1743384202407,5.53163,1807.8,1807.5,6.8164]
[1743384202608,8.62887403,1807.8,1807.3,6.35231]
[1743384203109,8.62887403,1807.8,1807.3,11.88522]
[1743384203411,5.53201,1807.7,1807.3,10.735232]
[1743384204115,5.53201,1807.7,1807.3,10.735202]
[1743384204305,5.53201,1807.7,1807.3,16.268202]
[1743384204502,5.4023,1807.9,1807.4,0.55]
[1743384204702,5.4023,1808.0,1807.8,5.53144]
[1743384205028,5.4023,1808.0,1807.8,5.53141]
[1743384206015,5.4023,1808.0,1807.7,11.88292]
[1743384206188,5.4023,1808.0,1807.7,13.071212]
[1743384206390,5.4023,1808.0,1807.8,5.53138]
[1743384206613,5.4023,1808.0,1807.9,5.53127]
[1743384207322,5.4023,1808.0,1807.8,5.53138]
[1743384207818,0.12194728,1807.9,1807.8,5.53138]
[1743384208320,0.12194728,1807.9,1807.7,13.071262]
[1743384208619,0.12194728,1807.9,1807.8,7.3887062]
[1743384209418,5.4023,1808.0,1807.9,5.53127]
[1743384209611,5.52424728,1808.0,1807.9,5.53127]
[1743384209999,0.12194728,1808.0,1807.9,5.53127]
[1743384210203,5.4023,1808.3,1807.9,11.06254]
[1743384210401,0.12194728,1808.2,1807.9,11.06254]
[1743384210603,0.12194728,1808.2,1808.0,5.53084]
[1743384212333,0.12194728,1808.2,1807.8,0.55]
[1743384212334,0.12194728,1808.2,1807.8,5.53157]
[1743384212501,5.53154,1807.9,1807.5,5.53246]
[1743384212707,3.88314403,1808.1,1807.6,5.53218]
[1743384212708,5.4023,1807.8,1807.6,5.53218]
[1743384212901,5.52882739,1807.8,1807.7,6.085108]
[1743384213617,5.52882739,1807.8,1807.7,0.553218]
[1743384213897,5.52882739,1807.8,1807.7,5.53189]
[1743384214333,5.52882739,1807.8,1807.7,6.30859]
[1743384214500,5.52882739,1807.8,1807.5,0.7767]
[1743384214842,5.52882739,1807.8,1807.7,5.53189]
[1743384215210,5.52882739,1807.8,1807.7,7.188292]
[1743384215927,5.4023,1808.1,1807.9,5.5312]
[1743384216113,5.4023,1808.1,1808.0,5.53097]
[1743384216820,5.4023,1808.4,1808.1,5.53048]
[1743384217022,8.4023,1808.4,1808.1,6.083528]
[1743384217334,13.93207,1808.4,1808.1,5.53048]
[1743384217512,13.93207,1808.4,1808.0,6.08089]
[1743384217938,8.4023,1808.4,1808.1,5.53046]
[1743384218105,8.4023,1808.4,1808.2,5.53024]
[1743384218306,8.4023,1808.4,1808.1,5.53046]
[1743384218909,5.4023,1808.4,1808.3,6.34575]
[1743384219138,0.7754,1808.7,1808.3,6.34575]
[1743384219139,5.4023,1808.6,1808.4,5.52967]
[1743384219341,5.4023,1808.8,1808.6,5.529]
[1743384219542,5.4023,1808.8,1808.7,5.52883]
[1743384221450,5.4023,1808.8,1808.7,6.634613]
[1743384221651,5.4023,1808.8,1808.7,7.450313]
[1743384222978,9.39995403,1809.2,1808.9,5.52822]
[1743384222979,5.4023,1809.0,1808.9,5.52822]
[1743384223122,5.4023,1809.1,1809.0,5.52791]
[1743384223322,6.1777,1809.4,1809.1,5.5276]
[1743384223874,6.1777,1809.4,1809.3,5.52699]
[1743384223875,5.4023,1809.4,1809.3,5.52699]
[1743384224143,5.4023,1809.4,1809.3,6.28739]
[1743384225136,5.4023,1809.4,1809.1,20.788]
[1743384225341,5.4023,1809.4,1809.2,5.52725]
[1743384226429,5.4023,1809.4,1809.2,8.158775]
[1743384227128,5.4023,1809.4,1809.2,2.631525]
[1743384227521,5.4023,1809.4,1809.2,5.52723]
[1743384228754,5.4023,1809.4,1809.1,6.288]
[1743384228938,6.1746,1809.4,1809.1,0.55]
[1743384229621,5.527,1809.3,1809.0,1.105613]
[1743384229961,6.30004,1809.1,1808.7,6.634603]
[1743384230124,11.70234,1809.1,1808.7,6.634603]
[1743384230657,6.1746,1809.1,1808.8,5.52836]
[1743384230826,6.1746,1809.1,1808.8,6.7446563]
[1743384231419,6.1746,1809.1,1808.8,1.2162963]
[1743384231625,0.7723,1809.5,1809.1,6.07756]
[1743384231844,6.1746,1809.5,1809.2,5.52715]
[1743384232239,6.1746,1809.5,1809.2,11.05431]
[1743384232439,6.1746,1809.5,1809.2,5.52715]
[1743384232633,6.1746,1809.5,1809.2,6.134865]
[1743384232833,6.1746,1809.5,1809.3,5.52695]
[1743384233123,6.1746,1809.5,1809.2,6.134865]
[1743384233653,6.1746,1809.5,1809.2,11.661975]
[1743384234355,6.1746,1809.5,1809.3,5.52697]
[1743384234551,6.1746,1809.5,1809.3,6.6931495]
[1743384234752,0.7723,1809.7,1809.5,5.52624]
[1743384234960,5.4023,1809.8,1809.6,5.5259]
[1743384235331,5.4023,1809.8,1809.7,5.52577]
[1743384236164,0.1,1809.9,1809.7,1.3104]
[1743384236342,0.1,1809.9,1809.8,6.07547]
[1743384236536,0.1,1809.9,1809.8,6.759057]
[1743384237837,0.24364212,1809.9,1809.8,6.759057]
[1743384239034,0.24364212,1809.9,1809.8,21.259057]
[1743384240331,0.24364212,1809.9,1809.8,15.183587]
[1743384240532,0.24364212,1809.9,1809.7,5.52569]
[1743384240533,5.76895212,1809.9,1809.5,6.32616]
[1743384240731,4.17278615,1809.9,1809.6,5.52608]
[1743384240938,1.07554212,1809.9,1809.7,5.52565]
[1743384241238,1.07554212,1809.9,1809.6,5.52593]
[1743384241578,0.24364212,1809.9,1809.7,5.52551]